[Event "Early-Titled-Tuesday-Blitz-April-02-2024"]
[Site "Chess.com"]
[Date "2024.04.02"]
[Round "7"]
[White "DenLaz"]
[Black "eljanov"]
[Result "1-0"]
[WhiteElo "3110"]
[BlackElo "2889"]
[TimeControl "180+1"]
[EndTime "9:18:18 PDT"]
[Termination "DenLaz won by resignation"]

1. d4 {[%clk 0:03:00.9]} 1... d5 {[%clk 0:02:59.5]} 2. c4 {[%clk 0:03:01.4]}
2... e6 {[%clk 0:02:59.5]} 3. Nf3 {[%clk 0:03:02.1]} 3... Nf6 {[%clk 0:02:59.7]}
4. g3 {[%clk 0:03:02.7]} 4... Be7 {[%clk 0:02:58.8]} 5. Bg2 {[%clk 0:03:03]}
5... O-O {[%clk 0:02:59.4]} 6. O-O {[%clk 0:03:02.2]} 6... dxc4 {[%clk
0:02:59.8]} 7. Qc2 {[%clk 0:03:02]} 7... a6 {[%clk 0:02:59.9]} 8. a4 {[%clk
0:03:02.1]} 8... Bd7 {[%clk 0:03:00.3]} 9. Rd1 {[%clk 0:02:58.4]} 9... Bc6
{[%clk 0:02:56.7]} 10. Bg5 {[%clk 0:02:58.8]} 10... Nbd7 {[%clk 0:02:53.9]} 11.
Nbd2 {[%clk 0:02:58.1]} 11... h6 {[%clk 0:02:49.8]} 12. Bxf6 {[%clk 0:02:58]}
12... Nxf6 {[%clk 0:02:50.3]} 13. Nxc4 {[%clk 0:02:58.7]} 13... a5 {[%clk
0:02:46.8]} 14. Nfe5 {[%clk 0:02:57.6]} 14... Bxg2 {[%clk 0:02:46.7]} 15. Kxg2
{[%clk 0:02:58.5]} 15... c6 {[%clk 0:02:40.7]} 16. e4 {[%clk 0:02:58.1]} 16...
Qc7 {[%clk 0:02:29.2]} 17. Rac1 {[%clk 0:02:57.5]} 17... Rfd8 {[%clk 0:02:27.9]}
18. Qe2 {[%clk 0:02:56.7]} 18... Nd7 {[%clk 0:02:21.1]} 19. Nf3 {[%clk
0:02:53.5]} 19... Bf6 {[%clk 0:02:15.2]} 20. h4 {[%clk 0:02:51.3]} 20... Nb6
{[%clk 0:02:12.2]} 21. b3 {[%clk 0:02:50.6]} 21... g6 {[%clk 0:02:04.8]} 22. h5
{[%clk 0:02:37.3]} 22... g5 {[%clk 0:02:04.8]} 23. e5 {[%clk 0:02:37.5]} 23...
Bg7 {[%clk 0:02:05.1]} 24. Nh2 {[%clk 0:02:32.8]} 24... Nxc4 {[%clk 0:02:04.3]}
25. Rxc4 {[%clk 0:02:30.4]} 25... Qb6 {[%clk 0:01:54.5]} 26. Rd3 {[%clk
0:02:16.1]} 26... Qa6 {[%clk 0:01:46]} 27. Qf3 {[%clk 0:01:51]} 27... Rd5 {[%clk
0:01:41]} 28. Ng4 {[%clk 0:01:50.5]} 28... b5 {[%clk 0:01:38.9]} 29. Rc2 {[%clk
0:01:48.3]} 29... bxa4 {[%clk 0:01:32.8]} 30. bxa4 {[%clk 0:01:47.3]} 30... Rad8
{[%clk 0:01:31.7]} 31. Rdc3 {[%clk 0:01:11.7]} 31... Rxd4 {[%clk 0:01:25.7]} 32.
Rxc6 {[%clk 0:01:10.7]} 32... Qd3 {[%clk 0:01:23.1]} 33. Qxd3 {[%clk 0:01:05.3]}
33... Rxd3 {[%clk 0:01:23.3]} 34. Rc8 {[%clk 0:00:54.8]} 34... Kf8 {[%clk
0:01:18.7]} 35. Rxd8+ {[%clk 0:00:49.3]} 35... Rxd8 {[%clk 0:01:18.3]} 36. Rc5
{[%clk 0:00:47.6]} 36... Rd4 {[%clk 0:01:16.8]} 37. Nf6 {[%clk 0:00:48.1]} 37...
Bxf6 {[%clk 0:01:13.7]} 38. exf6 {[%clk 0:00:47.7]} 38... Kg8 {[%clk 0:00:47.6]}
39. Rxa5 {[%clk 0:00:47.6]} 39... g4 {[%clk 0:00:46.5]} 40. Ra8+ {[%clk
0:00:45.5]} 40... Kh7 {[%clk 0:00:46.6]} 41. a5 {[%clk 0:00:35.5]} 41... Rd5
{[%clk 0:00:46.5]} 42. a6 {[%clk 0:00:21.9]} 42... Rxh5 {[%clk 0:00:45.9]} 43.
a7 {[%clk 0:00:18.7]} 43... Ra5 {[%clk 0:00:45.9]} 44. Kf1 {[%clk 0:00:18.8]}
44... Ra2 {[%clk 0:00:13.5]} 45. Ke1 {[%clk 0:00:18.5]} 45... h5 {[%clk
0:00:13.8]} 46. Kd1 {[%clk 0:00:07.4]} 46... Ra5 {[%clk 0:00:12.6]} 47. Ke2
{[%clk 0:00:07.6]} 47... Ra3 {[%clk 0:00:12.4]} 48. Kd2 {[%clk 0:00:08]} 48...
Ra2+ {[%clk 0:00:12]} 49. Ke3 {[%clk 0:00:08.3]} 49... Ra4 {[%clk 0:00:12.1]}
50. Kd3 {[%clk 0:00:08.7]} 50... Ra5 {[%clk 0:00:11.1]} 51. Kc4 {[%clk
0:00:08.8]} 51... Ra1 {[%clk 0:00:08.8]} 52. Kc5 {[%clk 0:00:09]} 52... e5
{[%clk 0:00:07]} 53. Kd5 {[%clk 0:00:09.4]} 53... Ra5+ {[%clk 0:00:07]} 54. Ke4
{[%clk 0:00:10]} 54... Ra4+ {[%clk 0:00:04.6]} 55. Kxe5 {[%clk 0:00:10.4]} 55...
Ra6 {[%clk 0:00:04.5]} 56. Kd5 {[%clk 0:00:10.2]} 56... Ra2 {[%clk 0:00:03]} 57.
Kd6 {[%clk 0:00:10.7]} 1-0

[Event "Early-Titled-Tuesday-Blitz-April-02-2024"]
[Site "Chess.com"]
[Date "2024.04.02"]
[Round "7"]
[White "Midgardsormur"]
[Black "Mikhail_Golubev"]
[Result "0-1"]
[WhiteElo "2465"]
[BlackElo "2628"]
[TimeControl "180+1"]
[EndTime "9:18:18 PDT"]
[Termination "Mikhail_Golubev won by resignation"]

1. e4 {[%clk 0:03:00.9]} 1... c5 {[%clk 0:03:00]} 2. Nc3 {[%clk 0:03:01]} 2...
Nc6 {[%clk 0:02:58.8]} 3. Bb5 {[%clk 0:03:01]} 3... Nd4 {[%clk 0:02:56.8]} 4.
Nf3 {[%clk 0:03:00.9]} 4... a6 {[%clk 0:02:55.1]} 5. Bd3 {[%clk 0:03:00.7]} 5...
Nc6 {[%clk 0:02:52.2]} 6. O-O {[%clk 0:02:59.9]} 6... g6 {[%clk 0:02:52.2]} 7.
Re1 {[%clk 0:02:59.6]} 7... Bg7 {[%clk 0:02:46.8]} 8. a3 {[%clk 0:02:51]} 8...
d6 {[%clk 0:02:44.6]} 9. Rb1 {[%clk 0:02:50.7]} 9... b5 {[%clk 0:02:39.1]} 10.
h3 {[%clk 0:02:49.2]} 10... Nf6 {[%clk 0:02:36.7]} 11. b4 {[%clk 0:02:46.9]}
11... c4 {[%clk 0:02:33.1]} 12. Bf1 {[%clk 0:02:46.4]} 12... O-O {[%clk
0:02:30.8]} 13. Nd5 {[%clk 0:02:44.6]} 13... Be6 {[%clk 0:02:14]} 14. Nxf6+
{[%clk 0:02:38.3]} 14... Bxf6 {[%clk 0:02:14.9]} 15. d4 {[%clk 0:02:38.8]} 15...
cxd3 {[%clk 0:02:14.6]} 16. cxd3 {[%clk 0:02:38.7]} 16... Nd4 {[%clk 0:02:12.2]}
17. Bb2 {[%clk 0:02:34.2]} 17... Qb6 {[%clk 0:02:10.3]} 18. e5 {[%clk 0:02:29]}
18... dxe5 {[%clk 0:02:04.9]} 19. Nxe5 {[%clk 0:02:28.7]} 19... Rac8 {[%clk
0:01:40.7]} 20. Re4 {[%clk 0:02:02]} 20... Rfd8 {[%clk 0:01:38.9]} 21. Rc1
{[%clk 0:01:46.5]} 21... Rxc1 {[%clk 0:01:02.1]} 22. Qxc1 {[%clk 0:01:47.4]}
22... Bf5 {[%clk 0:00:57.8]} 23. Rxd4 {[%clk 0:01:19.8]} 23... Rxd4 {[%clk
0:00:58.7]} 24. Bxd4 {[%clk 0:01:18.7]} 24... Qxd4 {[%clk 0:00:58.6]} 25. Nc6
{[%clk 0:01:17.3]} 25... Qd6 {[%clk 0:00:50.1]} 26. Qc5 {[%clk 0:01:08]} 26...
Bd7 {[%clk 0:00:28.9]} 27. Qxd6 {[%clk 0:00:38.6]} 27... exd6 {[%clk 0:00:29.8]}
28. Nb8 {[%clk 0:00:39.5]} 28... Bc8 {[%clk 0:00:27.7]} 29. Nc6 {[%clk
0:00:14.3]} 29... Kf8 {[%clk 0:00:13.9]} 30. d4 {[%clk 0:00:12.9]} 30... Bb7
{[%clk 0:00:03]} 31. d5 {[%clk 0:00:12.2]} 31... Bxc6 {[%clk 0:00:02.9]} 32.
dxc6 {[%clk 0:00:12.4]} 32... Ke7 {[%clk 0:00:03.2]} 33. a4 {[%clk 0:00:11.3]}
33... bxa4 {[%clk 0:00:02.4]} 34. Bxa6 {[%clk 0:00:12.1]} 34... Kd8 {[%clk
0:00:02.3]} 35. Bc4 {[%clk 0:00:10.2]} 35... Bc3 {[%clk 0:00:02.3]} 36. b5
{[%clk 0:00:08.8]} 36... Ba5 {[%clk 0:00:02.4]} 37. Bxf7 {[%clk 0:00:08.3]}
37... Kc7 {[%clk 0:00:02.7]} 38. Kf1 {[%clk 0:00:08.3]} 38... Kb6 {[%clk
0:00:02.8]} 39. Bc4 {[%clk 0:00:07]} 39... Kc5 {[%clk 0:00:02.6]} 40. Bg8 {[%clk
0:00:03.2]} 40... Kxb5 {[%clk 0:00:02.5]} 41. Ke2 {[%clk 0:00:03.7]} 41... Kxc6
{[%clk 0:00:02.6]} 42. Kd3 {[%clk 0:00:04]} 42... Kc5 {[%clk 0:00:02.8]} 43. Ke4
{[%clk 0:00:04.4]} 43... Bd8 {[%clk 0:00:02.6]} 44. f3 {[%clk 0:00:04.6]} 44...
Bf6 {[%clk 0:00:02.5]} 45. g4 {[%clk 0:00:04.3]} 45... a3 {[%clk 0:00:02.1]} 46.
Bf7 {[%clk 0:00:04]} 46... Kc6 {[%clk 0:00:01.9]} 47. Be6 {[%clk 0:00:03.2]}
47... Kc7 {[%clk 0:00:02.1]} 48. Bf7 {[%clk 0:00:03.7]} 48... Kd8 {[%clk
0:00:02.3]} 49. Kd3 {[%clk 0:00:03.7]} 49... Ke7 {[%clk 0:00:02.3]} 50. Bd5
{[%clk 0:00:03.5]} 50... Be5 {[%clk 0:00:02.8]} 51. Kc2 {[%clk 0:00:03.7]} 51...
Kf6 {[%clk 0:00:02.9]} 52. Kb3 {[%clk 0:00:04.3]} 52... Bb2 {[%clk 0:00:02.4]}
53. Kc2 {[%clk 0:00:04.3]} 53... Ke5 {[%clk 0:00:02.8]} 54. Kd3 {[%clk
0:00:04.6]} 54... Kxd5 {[%clk 0:00:02.2]} 0-1

[Event "Early-Titled-Tuesday-Blitz-April-02-2024"]
[Site "Chess.com"]
[Date "2024.04.02"]
[Round "7"]
[White "LornerAcosta"]
[Black "ViratKohl_i"]
[Result "1-0"]
[WhiteElo "2610"]
[BlackElo "2504"]
[TimeControl "180+1"]
[EndTime "9:18:18 PDT"]
[Termination "LornerAcosta won on time"]

1. Nf3 {[%clk 0:03:00.9]} 1... Nf6 {[%clk 0:02:57.8]} 2. d4 {[%clk 0:03:00.3]}
2... e6 {[%clk 0:02:57]} 3. e3 {[%clk 0:03:00.5]} 3... b6 {[%clk 0:02:56.9]} 4.
Bd3 {[%clk 0:03:01.4]} 4... Bb7 {[%clk 0:02:56.9]} 5. Nbd2 {[%clk 0:03:02.3]}
5... Be7 {[%clk 0:02:56.5]} 6. O-O {[%clk 0:03:02.7]} 6... d5 {[%clk 0:02:56.7]}
7. Qe2 {[%clk 0:03:02.8]} 7... O-O {[%clk 0:02:56.2]} 8. c4 {[%clk 0:03:03.4]}
8... c5 {[%clk 0:02:54.7]} 9. dxc5 {[%clk 0:03:02.1]} 9... Bxc5 {[%clk
0:02:51.7]} 10. Rd1 {[%clk 0:02:58.8]} 10... Qe7 {[%clk 0:02:49.3]} 11. a3
{[%clk 0:02:55.7]} 11... dxc4 {[%clk 0:02:42.1]} 12. Nxc4 {[%clk 0:02:52.1]}
12... a5 {[%clk 0:02:37.6]} 13. Bd2 {[%clk 0:02:51.8]} 13... Nbd7 {[%clk
0:02:26.2]} 14. Rab1 {[%clk 0:02:33.1]} 14... a4 {[%clk 0:02:24.6]} 15. b4
{[%clk 0:02:15.9]} 15... axb3 {[%clk 0:02:23]} 16. Rxb3 {[%clk 0:02:15.9]} 16...
Bc6 {[%clk 0:02:11.5]} 17. Rdb1 {[%clk 0:02:03.9]} 17... Ba4 {[%clk 0:02:08.8]}
18. R3b2 {[%clk 0:01:59.4]} 18... b5 {[%clk 0:02:03.2]} 19. Nce5 {[%clk
0:01:53.2]} 19... Bxa3 {[%clk 0:02:00]} 20. Bb4 {[%clk 0:01:48.8]} 20... Bxb4
{[%clk 0:01:55.4]} 21. Rxb4 {[%clk 0:01:49.7]} 21... Nxe5 {[%clk 0:01:49.9]} 22.
Nxe5 {[%clk 0:01:50.6]} 22... Nd5 {[%clk 0:01:42]} 23. Bxh7+ {[%clk 0:01:40.4]}
23... Kxh7 {[%clk 0:01:40.6]} 24. Qh5+ {[%clk 0:01:39.8]} 24... Kg8 {[%clk
0:01:39.1]} 25. Rh4 {[%clk 0:01:40.7]} 25... Qxh4 {[%clk 0:01:26.6]} 26. Qxh4
{[%clk 0:01:41.6]} 26... Rac8 {[%clk 0:01:24.9]} 27. h3 {[%clk 0:01:38.4]} 27...
Rc2 {[%clk 0:01:07.4]} 28. Nf3 {[%clk 0:01:22]} 28... Rc4 {[%clk 0:01:02.5]} 29.
Qh5 {[%clk 0:01:10]} 29... f6 {[%clk 0:00:56.8]} 30. Nd4 {[%clk 0:01:04.4]}
30... Nc7 {[%clk 0:00:54.8]} 31. Rb2 {[%clk 0:00:51.4]} 31... Rd8 {[%clk
0:00:47.7]} 32. Kh2 {[%clk 0:00:47]} 32... Rd5 {[%clk 0:00:37.8]} 33. Qg6 {[%clk
0:00:42.9]} 33... Rg5 {[%clk 0:00:36.5]} 34. Qe4 {[%clk 0:00:41.4]} 34... e5
{[%clk 0:00:32.4]} 35. h4 {[%clk 0:00:30.9]} 35... Rh5 {[%clk 0:00:30.4]} 36.
Qg4 {[%clk 0:00:31.1]} 36... Rh6 {[%clk 0:00:16.6]} 37. Qc8+ {[%clk 0:00:29.8]}
37... Kh7 {[%clk 0:00:15.5]} 38. Qf5+ {[%clk 0:00:26]} 38... Kg8 {[%clk
0:00:14.1]} 39. Qc8+ {[%clk 0:00:19.7]} 39... Kh7 {[%clk 0:00:13.5]} 40. Nf5
{[%clk 0:00:20.3]} 40... Rg6 {[%clk 0:00:11.8]} 41. f3 {[%clk 0:00:16.4]} 41...
Nd5 {[%clk 0:00:09.9]} 42. Qe8 {[%clk 0:00:14.3]} 42... Rc3 {[%clk 0:00:07.9]}
43. Re2 {[%clk 0:00:10.5]} 43... Bd1 {[%clk 0:00:05]} 44. Re1 {[%clk 0:00:10]}
44... Bc2 {[%clk 0:00:05.5]} 45. Nd6 {[%clk 0:00:08.4]} 45... b4 {[%clk
0:00:05]} 46. h5 {[%clk 0:00:08.8]} 46... Rg5 {[%clk 0:00:04.7]} 47. f4 {[%clk
0:00:08.3]} 47... exf4 {[%clk 0:00:03.9]} 48. Nf7 {[%clk 0:00:07.9]} 48... Rxh5+
{[%clk 0:00:03]} 49. Kg1 {[%clk 0:00:07.5]} 49... fxe3 {[%clk 0:00:02.5]} 50.
Qh8+ {[%clk 0:00:06.7]} 50... Kg6 {[%clk 0:00:02.7]} 51. Qe8 {[%clk 0:00:07.6]}
1-0

[Event "Early-Titled-Tuesday-Blitz-April-02-2024"]
[Site "Chess.com"]
[Date "2024.04.02"]
[Round "7"]
[White "moro182"]
[Black "Vahe_Danielyan"]
[Result "0-1"]
[WhiteElo "2888"]
[BlackElo "2645"]
[TimeControl "180+1"]
[EndTime "9:18:19 PDT"]
[Termination "Vahe_Danielyan won by resignation"]

1. d4 {[%clk 0:03:00.9]} 1... Nf6 {[%clk 0:03:00.1]} 2. Bf4 {[%clk 0:03:01.3]}
2... d5 {[%clk 0:02:58]} 3. e3 {[%clk 0:03:01.1]} 3... c5 {[%clk 0:02:55.5]} 4.
dxc5 {[%clk 0:03:02]} 4... Qa5+ {[%clk 0:02:49.7]} 5. Nc3 {[%clk 0:03:01.8]}
5... Qxc5 {[%clk 0:02:40.5]} 6. Nb5 {[%clk 0:03:01.6]} 6... Na6 {[%clk
0:02:40.4]} 7. c3 {[%clk 0:03:02.1]} 7... Bd7 {[%clk 0:02:36.2]} 8. a4 {[%clk
0:03:01.1]} 8... e6 {[%clk 0:01:42.2]} 9. Nf3 {[%clk 0:03:00.9]} 9... Be7 {[%clk
0:01:40.6]} 10. Be2 {[%clk 0:02:51.8]} 10... O-O {[%clk 0:01:38.7]} 11. Be5
{[%clk 0:02:47.3]} 11... Ne4 {[%clk 0:01:32.2]} 12. Bd4 {[%clk 0:02:43]} 12...
Qc8 {[%clk 0:01:24.6]} 13. Nxa7 {[%clk 0:02:42.2]} 13... Qd8 {[%clk 0:01:06.3]}
14. Nb5 {[%clk 0:02:37.4]} 14... f6 {[%clk 0:01:06.4]} 15. a5 {[%clk 0:02:34.8]}
15... Qe8 {[%clk 0:01:02.9]} 16. Na3 {[%clk 0:02:26.6]} 16... Ba4 {[%clk
0:00:52.2]} 17. b3 {[%clk 0:01:53.5]} 17... Bc6 {[%clk 0:00:52]} 18. Qc2 {[%clk
0:01:36.9]} 18... e5 {[%clk 0:00:51.5]} 19. Bb6 {[%clk 0:01:36.5]} 19... Nxc3
{[%clk 0:00:50.9]} 20. Bxa6 {[%clk 0:01:34.3]} 20... Bb4 {[%clk 0:00:46.1]} 21.
Be2 {[%clk 0:00:20.8]} 21... Na4+ {[%clk 0:00:45.2]} 22. Kf1 {[%clk 0:00:18.5]}
22... Nxb6 {[%clk 0:00:45.5]} 23. axb6 {[%clk 0:00:13.9]} 23... Rxa3 {[%clk
0:00:41.7]} 24. Rxa3 {[%clk 0:00:13.7]} 24... Bxa3 {[%clk 0:00:42.6]} 25. g3
{[%clk 0:00:12.4]} 25... Qd8 {[%clk 0:00:40.2]} 26. Kg2 {[%clk 0:00:12.5]} 26...
Qxb6 {[%clk 0:00:40.8]} 27. Ra1 {[%clk 0:00:12.8]} 27... Bb4 {[%clk 0:00:38.8]}
28. Kg1 {[%clk 0:00:12]} 28... Rd8 {[%clk 0:00:38.3]} 29. Rd1 {[%clk 0:00:11.9]}
29... Qc5 {[%clk 0:00:36.9]} 30. Qb1 {[%clk 0:00:11.5]} 30... d4 {[%clk
0:00:34.5]} 31. exd4 {[%clk 0:00:12.4]} 31... exd4 {[%clk 0:00:35.4]} 32. Bc4+
{[%clk 0:00:12.1]} 32... Kh8 {[%clk 0:00:34.5]} 33. Nh4 {[%clk 0:00:12.3]} 33...
Qe5 {[%clk 0:00:30]} 34. Bf1 {[%clk 0:00:04.2]} 34... Qe4 {[%clk 0:00:26.6]} 35.
Qxe4 {[%clk 0:00:03.7]} 35... Bxe4 {[%clk 0:00:27.5]} 36. Bd3 {[%clk 0:00:03.2]}
36... Bd5 {[%clk 0:00:21]} 37. Bc4 {[%clk 0:00:02.4]} 37... Bxc4 {[%clk
0:00:18]} 38. bxc4 {[%clk 0:00:03.3]} 38... Bc3 {[%clk 0:00:18.5]} 39. Nf5
{[%clk 0:00:03.6]} 39... g6 {[%clk 0:00:17.5]} 40. Ne7 {[%clk 0:00:03.4]} 40...
Kg7 {[%clk 0:00:12.6]} 41. Nd5 {[%clk 0:00:02.7]} 41... Rc8 {[%clk 0:00:13.1]}
42. Rb1 {[%clk 0:00:03.3]} 42... Rxc4 {[%clk 0:00:07.6]} 43. Rxb7+ {[%clk
0:00:03.4]} 43... Kh6 {[%clk 0:00:07.6]} 44. Rd7 {[%clk 0:00:04.3]} 44... d3
{[%clk 0:00:04.6]} 45. Nf4 {[%clk 0:00:03.6]} 45... d2 {[%clk 0:00:04.8]} 46.
Kf1 {[%clk 0:00:03.1]} 46... Re4 {[%clk 0:00:05.1]} 47. Ne2 {[%clk 0:00:03.4]}
47... Bb4 {[%clk 0:00:05]} 48. Rd3 {[%clk 0:00:03.5]} 48... f5 {[%clk
0:00:05.2]} 49. h3 {[%clk 0:00:03.9]} 49... Rc4 {[%clk 0:00:05.6]} 50. g4 {[%clk
0:00:03]} 50... Rc1+ {[%clk 0:00:05.7]} 51. Kg2 {[%clk 0:00:03.1]} 51... d1=Q
{[%clk 0:00:06.1]} 52. g5+ {[%clk 0:00:02.4]} 52... Kxg5 {[%clk 0:00:05.5]} 0-1

[Event "Early-Titled-Tuesday-Blitz-April-02-2024"]
[Site "Chess.com"]
[Date "2024.04.02"]
[Round "7"]
[White "ChessboArt"]
[Black "Flaccidmoves"]
[Result "1-0"]
[WhiteElo "2294"]
[BlackElo "2423"]
[TimeControl "180+1"]
[EndTime "9:18:19 PDT"]
[Termination "ChessboArt won by checkmate"]

1. Nf3 {[%clk 0:02:52.3]} 1... Nf6 {[%clk 0:02:58.7]} 2. g3 {[%clk 0:02:52]}
2... b6 {[%clk 0:02:54.6]} 3. Bg2 {[%clk 0:02:51.4]} 3... Bb7 {[%clk 0:02:55.1]}
4. c4 {[%clk 0:02:51.8]} 4... c5 {[%clk 0:02:51.2]} 5. Nc3 {[%clk 0:02:52.1]}
5... e6 {[%clk 0:02:51.4]} 6. O-O {[%clk 0:02:51.9]} 6... Be7 {[%clk 0:02:52]}
7. b3 {[%clk 0:02:51.9]} 7... O-O {[%clk 0:02:51.8]} 8. Bb2 {[%clk 0:02:52.1]}
8... Nc6 {[%clk 0:02:45.9]} 9. e3 {[%clk 0:02:52.2]} 9... d5 {[%clk 0:02:42.4]}
10. cxd5 {[%clk 0:02:53.1]} 10... Nxd5 {[%clk 0:02:34.2]} 11. Nxd5 {[%clk
0:02:52.7]} 11... exd5 {[%clk 0:02:34.9]} 12. d4 {[%clk 0:02:52.8]} 12... Bf6
{[%clk 0:02:30]} 13. Qd2 {[%clk 0:02:37.9]} 13... Re8 {[%clk 0:02:26.2]} 14.
Rac1 {[%clk 0:02:34.3]} 14... cxd4 {[%clk 0:02:15.1]} 15. Nxd4 {[%clk
0:02:34.3]} 15... Ne5 {[%clk 0:02:15.4]} 16. Rc2 {[%clk 0:02:09.5]} 16... Ba6
{[%clk 0:02:02.1]} 17. Rd1 {[%clk 0:02:05.9]} 17... Rc8 {[%clk 0:01:46.9]} 18.
Rxc8 {[%clk 0:01:53]} 18... Qxc8 {[%clk 0:01:47.8]} 19. Bxd5 {[%clk 0:01:51.9]}
19... Qh3 {[%clk 0:01:38.8]} 20. Bg2 {[%clk 0:01:48.4]} 20... Qh5 {[%clk
0:01:37.7]} 21. Qc2 {[%clk 0:00:43.6]} 21... Rc8 {[%clk 0:01:19.5]} 22. Qb1
{[%clk 0:00:43.8]} 22... h6 {[%clk 0:00:57.4]} 23. Rd2 {[%clk 0:00:43.7]} 23...
Ng4 {[%clk 0:00:53.4]} 24. h3 {[%clk 0:00:41.2]} 24... Ne5 {[%clk 0:00:52.6]}
25. Qd1 {[%clk 0:00:40.6]} 25... Qxd1+ {[%clk 0:00:44.1]} 26. Rxd1 {[%clk
0:00:41.5]} 26... Nd3 {[%clk 0:00:44.5]} 27. Ba3 {[%clk 0:00:33.4]} 27... Nc5
{[%clk 0:00:32.4]} 28. Bf1 {[%clk 0:00:29.8]} 28... Bb7 {[%clk 0:00:31.5]} 29.
Ne2 {[%clk 0:00:28.8]} 29... Rc7 {[%clk 0:00:27.4]} 30. Bg2 {[%clk 0:00:29]}
30... Ba6 {[%clk 0:00:26.8]} 31. Nf4 {[%clk 0:00:28]} 31... Be5 {[%clk
0:00:17.3]} 32. Nd5 {[%clk 0:00:27.7]} 32... Rb7 {[%clk 0:00:02.6]} 33. Nb4
{[%clk 0:00:24.6]} 33... Rb8 {[%clk 0:00:03.1]} 34. Nxa6 {[%clk 0:00:23.9]}
34... Nxa6 {[%clk 0:00:04]} 35. Rd7 {[%clk 0:00:20]} 35... Nc5 {[%clk
0:00:04.4]} 36. Rxa7 {[%clk 0:00:20]} 36... Rd8 {[%clk 0:00:05.1]} 37. Bxc5
{[%clk 0:00:20.1]} 37... bxc5 {[%clk 0:00:05.3]} 38. Ra5 {[%clk 0:00:20.1]}
38... Rc8 {[%clk 0:00:05.3]} 39. Bd5 {[%clk 0:00:19.2]} 39... Bc3 {[%clk
0:00:05.8]} 40. Ra7 {[%clk 0:00:18.6]} 40... Kh8 {[%clk 0:00:06.7]} 41. Rxf7
{[%clk 0:00:18.2]} 41... Rd8 {[%clk 0:00:07.3]} 42. e4 {[%clk 0:00:18.6]} 42...
Bd4 {[%clk 0:00:07.9]} 43. Kg2 {[%clk 0:00:18.9]} 43... Ra8 {[%clk 0:00:07.6]}
44. a4 {[%clk 0:00:18.5]} 44... Rb8 {[%clk 0:00:07.6]} 45. Bc4 {[%clk
0:00:18.7]} 45... Re8 {[%clk 0:00:07.2]} 46. Kf3 {[%clk 0:00:19.3]} 46... g5
{[%clk 0:00:07.3]} 47. a5 {[%clk 0:00:19.5]} 47... h5 {[%clk 0:00:07.7]} 48. a6
{[%clk 0:00:19.3]} 48... Rg8 {[%clk 0:00:06.4]} 49. g4 {[%clk 0:00:18.8]} 49...
h4 {[%clk 0:00:06.6]} 50. a7 {[%clk 0:00:18.4]} 50... Be5 {[%clk 0:00:06.1]} 51.
Bd5 {[%clk 0:00:18.7]} 51... Rf8 {[%clk 0:00:04.8]} 52. Rxf8+ {[%clk 0:00:18.6]}
52... Kh7 {[%clk 0:00:05.7]} 53. a8=Q {[%clk 0:00:17.2]} 53... Bb8 {[%clk
0:00:06.6]} 54. Qb7+ {[%clk 0:00:17.1]} 54... Kh6 {[%clk 0:00:07.5]} 55. Qc6+
{[%clk 0:00:16.1]} 55... Kh7 {[%clk 0:00:06.5]} 56. Qd7+ {[%clk 0:00:13.5]}
56... Kh6 {[%clk 0:00:06.1]} 57. Qe6+ {[%clk 0:00:13.6]} 57... Kg7 {[%clk
0:00:07]} 58. Qf7+ {[%clk 0:00:13.7]} 58... Kh6 {[%clk 0:00:07.4]} 59. Rh8#
{[%clk 0:00:13.8]} 1-0

[Event "Early-Titled-Tuesday-Blitz-April-02-2024"]
[Site "Chess.com"]
[Date "2024.04.02"]
[Round "7"]
[White "JJDAREK"]
[Black "Schattman"]
[Result "0-1"]
[WhiteElo "2334"]
[BlackElo "2506"]
[TimeControl "180+1"]
[EndTime "9:18:24 PDT"]
[Termination "Schattman won on time"]

1. c4 {[%clk 0:03:00.9]} 1... g6 {[%clk 0:02:59.2]} 2. d4 {[%clk 0:03:00.2]}
2... Nf6 {[%clk 0:02:58.6]} 3. Nc3 {[%clk 0:02:59.6]} 3... d5 {[%clk 0:02:58.5]}
4. cxd5 {[%clk 0:02:58.1]} 4... Nxd5 {[%clk 0:02:59.4]} 5. Bd2 {[%clk
0:02:58.5]} 5... Bg7 {[%clk 0:02:55.9]} 6. e4 {[%clk 0:02:58.4]} 6... Nxc3
{[%clk 0:02:56]} 7. Bxc3 {[%clk 0:02:59.3]} 7... c5 {[%clk 0:02:55.3]} 8. d5
{[%clk 0:02:58.7]} 8... Bxc3+ {[%clk 0:02:54.7]} 9. bxc3 {[%clk 0:02:59.6]} 9...
O-O {[%clk 0:02:54.1]} 10. h4 {[%clk 0:02:57]} 10... h5 {[%clk 0:02:52.2]} 11.
Qd2 {[%clk 0:02:53.5]} 11... e6 {[%clk 0:02:52.5]} 12. Nf3 {[%clk 0:02:51.5]}
12... exd5 {[%clk 0:02:52.1]} 13. exd5 {[%clk 0:02:52.4]} 13... Bg4 {[%clk
0:02:51.5]} 14. Be2 {[%clk 0:02:43.4]} 14... Bxf3 {[%clk 0:02:50.4]} 15. Bxf3
{[%clk 0:02:44.3]} 15... Nd7 {[%clk 0:02:50.2]} 16. g3 {[%clk 0:02:29.7]} 16...
Ne5 {[%clk 0:02:43.4]} 17. Be2 {[%clk 0:02:23.9]} 17... Qf6 {[%clk 0:02:21.8]}
18. O-O {[%clk 0:02:19.4]} 18... Rfe8 {[%clk 0:02:21.3]} 19. Rab1 {[%clk
0:02:03.9]} 19... b6 {[%clk 0:02:20.8]} 20. c4 {[%clk 0:02:03.6]} 20... Rad8
{[%clk 0:02:17]} 21. a4 {[%clk 0:02:03.2]} 21... Nc6 {[%clk 0:02:12.7]} 22. Rfe1
{[%clk 0:01:06]} 22... Nd4 {[%clk 0:02:12.3]} 23. Bd1 {[%clk 0:01:06.5]} 23...
Qf5 {[%clk 0:01:57.7]} 24. Rb2 {[%clk 0:00:59.6]} 24... Kg7 {[%clk 0:01:56.9]}
25. a5 {[%clk 0:00:57.8]} 25... Rxe1+ {[%clk 0:01:23.4]} 26. Qxe1 {[%clk
0:00:57.7]} 26... Qf6 {[%clk 0:01:23.6]} 27. axb6 {[%clk 0:00:55.1]} 27... axb6
{[%clk 0:01:17.5]} 28. Kg2 {[%clk 0:00:43.3]} 28... Nf3 {[%clk 0:01:05.2]} 29.
Qe2 {[%clk 0:00:38.9]} 29... Nd4 {[%clk 0:01:05]} 30. Qd2 {[%clk 0:00:36.5]}
30... Re8 {[%clk 0:01:04.8]} 31. Qf4 {[%clk 0:00:29.1]} 31... Qd8 {[%clk
0:00:49.1]} 32. Bf3 {[%clk 0:00:25.9]} 32... Kg8 {[%clk 0:00:40.8]} 33. Be4
{[%clk 0:00:25.2]} 33... Ne2 {[%clk 0:00:32.5]} 34. Qe3 {[%clk 0:00:21.1]} 34...
Nd4 {[%clk 0:00:24.9]} 35. Qd3 {[%clk 0:00:21.2]} 35... Kg7 {[%clk 0:00:24.2]}
36. Rd2 {[%clk 0:00:18.9]} 36... Qd6 {[%clk 0:00:23.4]} 37. Qc3 {[%clk
0:00:18.8]} 37... f5 {[%clk 0:00:23.2]} 38. Rxd4 {[%clk 0:00:17.5]} 38... cxd4
{[%clk 0:00:22.1]} 39. Qxd4+ {[%clk 0:00:18.4]} 39... Qe5 {[%clk 0:00:21.2]} 40.
Qxe5+ {[%clk 0:00:17.6]} 40... Rxe5 {[%clk 0:00:21.3]} 41. Bd3 {[%clk
0:00:18.1]} 41... Kf6 {[%clk 0:00:21.3]} 42. Kf1 {[%clk 0:00:17.2]} 42... Re8
{[%clk 0:00:19]} 43. Kg2 {[%clk 0:00:17]} 43... Ke5 {[%clk 0:00:18.9]} 44. Kf3
{[%clk 0:00:16.9]} 44... Ra8 {[%clk 0:00:18]} 45. Ke3 {[%clk 0:00:16.4]} 45...
Ra2 {[%clk 0:00:17]} 46. f4+ {[%clk 0:00:16.9]} 46... Kd6 {[%clk 0:00:15.9]} 47.
Kf3 {[%clk 0:00:12.4]} 47... Rd2 {[%clk 0:00:15.1]} 48. Ke3 {[%clk 0:00:12.8]}
48... Rg2 {[%clk 0:00:14.7]} 49. Kf3 {[%clk 0:00:12.9]} 49... Rb2 {[%clk
0:00:14.3]} 50. Ke3 {[%clk 0:00:13.3]} 50... Kc5 {[%clk 0:00:14.5]} 51. Be2
{[%clk 0:00:10]} 51... Rb3+ {[%clk 0:00:13.9]} 52. Bd3 {[%clk 0:00:08.9]} 52...
Ra3 {[%clk 0:00:13.4]} 53. Ke2 {[%clk 0:00:04.3]} 53... Kd4 {[%clk 0:00:12.8]}
54. d6 {[%clk 0:00:02.6]} 54... Ra2+ {[%clk 0:00:12.1]} 55. Kf3 {[%clk 0:00:02]}
55... Kxd3 {[%clk 0:00:11.3]} 56. d7 {[%clk 0:00:02.1]} 56... Ra8 {[%clk
0:00:10.8]} 0-1